[Event "Guimaraes Open 2019"]
[Site "Guimaraes"]
[Date "2019.08.29"]
[Round "3.29"]
[White "Garcia Moreno, Carlos"]
[Black "Pina, Tiago"]
[Result "1-0"]
[ECO "B34"]
[WhiteElo "2292"]
[BlackElo "1548"]
[Annotator "ChessBase"]
[PlyCount "53"]
[EventDate "2019.08.28"]
[EventType "swiss"]
[EventCountry "POR"]
[SourceTitle "playchess.com"]
[Source "ChessBase"]
[SourceQuality "1"]
[TimeControl "5400+30"]

1. e4 {[%emt 0:00:00]} c5 {[%emt 0:00:00]} 2. Nf3 {[%emt 0:00:00]} Nc6 {[%emt 0:00:00]} 3. d4 {[%emt 0:00:06]} cxd4 {[%emt 0:00:00]} 4. Nxd4 {[%emt 0:00:17]} g6 {[%emt 0:00:00]} 5. Nc3 {[%emt 0:01:01]} Bg7 {[%emt 0:00:00]} 6. Nde2 {[%emt 0:01:02]} d6 {[%emt 0:00:15]} 7. h3 {[%emt 0:03:22]} Nf6 {[%emt 0:01:04]} 8. g4 {[%emt 0:06:17]} h6 {[%emt 0:00:58]} 9. Bg2 {[%emt 0:00:20]} a6 {[%emt 0:04:15]} 10. Be3 {[%emt 0:04:15]} Bd7 {[%emt 0:01:28]} 11. O-O {[%emt 0:06:41]} b5 {[%emt 0:02:53]} 12. b3 {[%emt 0:09:38]} Rc8 {[%emt 0:02:58]} 13. Qd2 {[%emt 0:04:35]} Qc7 {[%emt 0:05:39]} 14. Rfe1 {[%emt 0:08:47]} Na5 {[%emt 0:02:38]} 15. Rac1 {[%emt 0:09:13]} Be6 {[%emt 0:09:37]} 16. Nd5 {[%emt 0:03:35]} Bxd5 {[%emt 0:00:17]} 17. exd5 {[%emt 0:00:05]} Nd7 {[%emt 0:01:32]} 18. c3 {[%emt 0:03:28]} Nc5 {[%emt 0:14:34]} 19. Nd4 {[%emt 0:07:19]} h5 {[%emt 0:03:46]} 20. Bg5 {[%emt 0:02:18]} f6 {[%emt 0:02:14]} 21. Bf4 {[%emt 0:02:01]} Kf7 {[%emt 0:00:38]} 22. Qe2 {[%emt 0:07:06]} Nab7 {[%emt 0:03:31]} 23. b4 {[%emt 0:01:57]} Na4 {[%emt 0:00:13]} 24. Ne6 {[%emt 0:00:55]} Nxc3 {[%emt 0:01:30]} 25. Nxc7 {[%emt 0:01:30]} Nxe2+ {[%emt 0:00:17]} 26. Rxe2 {[%emt 0:00:03]} g5 {[%emt 0:00:20]} 27. Be3 {[%emt 0:01:09]} 1-0

[Event "Guimaraes Open 2019"]
[Site "Guimaraes"]
[Date "2019.08.29"]
[Round "3.30"]
[White "Silva, Daniel Frederico V"]
[Black "Alonso Garcia, Aaron"]
[Result "0-1"]
[ECO "B28"]
[WhiteElo "1655"]
[BlackElo "2291"]
[Annotator "ChessBase"]
[PlyCount "112"]
[EventDate "2019.08.28"]
[EventType "swiss"]
[EventCountry "POR"]
[SourceTitle "playchess.com"]
[Source "ChessBase"]
[SourceQuality "1"]
[TimeControl "5400+30"]

1. e4 {[%emt 0:01:10]} c5 {[%emt 0:00:00]} 2. Nf3 {[%emt 0:00:10]} a6 {[%emt 0:00:00]} 3. d4 {[%emt 0:01:51]} cxd4 {[%emt 0:00:00]} 4. Nxd4 {[%emt 0:00:31]} Nf6 {[%emt 0:00:00]} 5. Nc3 {[%emt 0:02:01]} e5 {[%emt 0:00:02]} 6. Nf3 {[%emt 0:01:07]} Bb4 {[%emt 0:00:04]} 7. Bd3 {[%emt 0:06:11]} d6 {[%emt 0:00:12]} 8. h3 {[%emt 0:01:42]} O-O {[%emt 0:00:06]} 9. O-O {[%emt 0:00:35]} Nbd7 {[%emt 0:00:02]} 10. Bd2 {[%emt 0:06:36]} Qc7 {[%emt 0:00:39]} 11. a3 {[%emt 0:11:45]} Bxc3 {[%emt 0:00:57]} 12. Bxc3 {[%emt 0:00:17]} Nc5 {[%emt 0:00:03]} 13. Re1 {[%emt 0:01:25]} Na4 {[%emt 0:00:04]} 14. Qd2 {[%emt 0:01:47]} Rd8 {[%emt 0:13:12]} 15. Rad1 {[%emt 0:10:49]} Nxc3 {[%emt 0:01:34]} 16. Qxc3 {[%emt 0:01:24]} Qxc3 {[%emt 0:00:09]} 17. bxc3 {[%emt 0:00:08]} Bd7 {[%emt 0:01:31]} 18. c4 {[%emt 0:06:49]} Bc6 {[%emt 0:06:28]} 19. Rb1 {[%emt 0:05:14]} Nd7 {[%emt 0:00:05]} 20. a4 {[%emt 0:02:29]} a5 {[%emt 0:05:27]} 21. c3 {[%emt 0:02:53]} Nc5 {[%emt 0:00:48]} 22. Bc2 {[%emt 0:00:14]} Bxa4 {[%emt 0:10:41]} 23. Bxa4 {[%emt 0:01:43]} Nxa4 {[%emt 0:00:01]} 24. Rxb7 {[%emt 0:01:05]} Nc5 {[%emt 0:01:51]} 25. Rc7 {[%emt 0:04:11]} Rdc8 {[%emt 0:00:23]} 26. Rxc8+ {[%emt 0:02:02]} Rxc8 {[%emt 0:00:01]} 27. Nd2 {[%emt 0:03:22]} Rb8 {[%emt 0:00:05]} 28. Rd1 {[%emt 0:01:20]} Kf8 {[%emt 0:02:37]} 29. f3 {[%emt 0:00:26]} a4 {[%emt 0:00:40]} 30. Rb1 {[%emt 0:02:06]} Ra8 {[%emt 0:03:47]} 31. Kf2 {[%emt 0:01:44]} a3 {[%emt 0:03:18]} 32. Ra1 {[%emt 0:00:11]} a2 {[%emt 0:00:02]} 33. Ke2 {[%emt 0:01:27]} Ra3 {[%emt 0:00:04]} 34. Nb1 {[%emt 0:01:08]} axb1=Q {[%emt 0:00:49]} 35. Rxb1 {[%emt 0:00:08]} Ra2+ {[%emt 0:00:19]} 36. Kf1 {[%emt 0:00:56]} Rc2 {[%emt 0:00:05]} 37. Rb8+ {[%emt 0:00:41]} Ke7 {[%emt 0:00:01]} 38. Rg8 {[%emt 0:00:19]} g6 {[%emt 0:00:22]} 39. Rh8 {[%emt 0:00:30]} h5 {[%emt 0:00:06]} 40. Rb8 {[%emt 0:00:19]} Rxc3 {[%emt 0:00:22]} 41. Rb4 {[%emt 0:00:30]} Kf6 {[%emt 0:00:14]} 42. Rb6 {[%emt 0:00:22]} Ke6 {[%emt 0:00:16]} 43. Rb4 {[%emt 0:00:16]} h4 {[%emt 0:00:06]} 44. Rb8 {[%emt 0:00:25]} Rxc4 {[%emt 0:00:14]} 45. Re8+ {[%emt 0:00:11]} Kf6 {[%emt 0:00:07]} 46. Rh8 {[%emt 0:00:11]} Rc1+ {[%emt 0:00:19]} 47. Ke2 {[%emt 0:00:16]} Rc2+ {[%emt 0:00:05]} 48. Kf1 {[%emt 0:00:04]} Kg5 {[%emt 0:00:22]} 49. Rf8 {[%emt 0:00:10]} f5 {[%emt 0:03:02]} 50. exf5 {[%emt 0:00:09]} gxf5 {[%emt 0:00:02]} 51. Kg1 {[%emt 0:00:34]} Nd3 {[%emt 0:00:13]} 52. Kf1 {[%emt 0:00:08]} Kf4 {[%emt 0:00:10]} 53. Rh8 {[%emt 0:00:29]} Ke3 {[%emt 0:00:05]} 54. Kg1 {[%emt 0:00:21]} Rc1+ {[%emt 0:00:04]} 55. Kh2 {[%emt 0:00:29]} Nf2 {[%emt 0:00:03]} 56. g3 {[%emt 0:00:20]} Kxf3 {[%emt 0:00:04]} 0-1

[Event "Guimaraes Open 2019"]
[Site "Guimaraes"]
[Date "2019.08.29"]
[Round "3.32"]
[White "Fidalgo, Andre Neves"]
[Black "Almeida, Jose Antonio Ferreir"]
[Result "1-0"]
[ECO "A48"]
[WhiteElo "2261"]
[BlackElo "1507"]
[Annotator "ChessBase"]
[PlyCount "97"]
[EventDate "2019.08.28"]
[EventType "swiss"]
[EventCountry "POR"]
[SourceTitle "playchess.com"]
[Source "ChessBase"]
[SourceQuality "1"]
[TimeControl "5400+30"]

1. d4 {[%emt 0:00:00]} Nf6 {[%emt 0:00:00]} 2. Nf3 {[%emt 0:00:00]} g6 {[%emt 0:00:20]} 3. c4 {[%emt 0:00:00]} Bg7 {[%emt 0:00:20]} 4. g3 {[%emt 0:00:00]} O-O {[%emt 0:00:10]} 5. Bg2 {[%emt 0:00:00]} c6 {[%emt 0:02:09]} 6. O-O {[%emt 0:00:16]} d5 {[%emt 0:01:30]} 7. Ne5 {[%emt 0:02:39]} Nbd7 {[%emt 0:01:36]} 8. Nc3 {[%emt 0:02:20]} e6 {[%emt 0:04:07]} 9. f4 {[%emt 0:02:37]} Qc7 {[%emt 0:04:14]} 10. b3 {[%emt 0:01:28]} a6 {[%emt 0:05:36]} 11. a4 {[%emt 0:05:41]} Qd6 {[%emt 0:18:45]} 12. cxd5 {[%emt 0:04:47]} exd5 {[%emt 0:05:22]} 13. Ba3 {[%emt 0:00:07]} Qe6 {[%emt 0:01:38]} 14. Bxf8 {[%emt 0:00:15]} Kxf8 {[%emt 0:00:57]} 15. Qd3 {[%emt 0:03:04]} Qe7 {[%emt 0:06:28]} 16. h3 {[%emt 0:02:11]} h5 {[%emt 0:01:25]} 17. e4 {[%emt 0:01:31]} dxe4 {[%emt 0:00:22]} 18. Nxe4 {[%emt 0:00:08]} Nxe4 {[%emt 0:00:34]} 19. Qxe4 {[%emt 0:04:10]} Nf6 {[%emt 0:02:09]} 20. Qe2 {[%emt 0:00:26]} Be6 {[%emt 0:00:21]} 21. Rae1 {[%emt 0:00:09]} Rd8 {[%emt 0:01:30]} 22. Nxg6+ {[%emt 0:08:24]} fxg6 {[%emt 0:02:45]} 23. Qxe6 {[%emt 0:00:09]} Qxe6 {[%emt 0:00:02]} 24. Rxe6 {[%emt 0:00:10]} Rxd4 {[%emt 0:01:51]} 25. Rfe1 {[%emt 0:00:18]} Rd7 {[%emt 0:00:30]} 26. Bf3 {[%emt 0:04:41]} Kf7 {[%emt 0:00:29]} 27. g4 {[%emt 0:00:55]} hxg4 {[%emt 0:01:40]} 28. hxg4 {[%emt 0:00:24]} Nd5 {[%emt 0:00:42]} 29. Bxd5 {[%emt 0:10:51]} cxd5 {[%emt 0:00:10]} 30. R6e2 {[%emt 0:00:10]} d4 {[%emt 0:03:41]} 31. Rd1 {[%emt 0:00:06]} Rc7 {[%emt 0:02:40]} 32. Rd3 {[%emt 0:01:59]} Rc5 {[%emt 0:02:04]} 33. Kg2 {[%emt 0:00:29]} Rc1 {[%emt 0:07:04]} 34. Kf3 {[%emt 0:01:09]} Rc7 {[%emt 0:01:39]} 35. Re1 {[%emt 0:01:17]} Rc2 {[%emt 0:00:34]} 36. Ke4 {[%emt 0:00:20]} Rc5 {[%emt 0:01:12]} 37. Re2 {[%emt 0:01:20]} Bf6 {[%emt 0:00:23]} 38. Rh2 {[%emt 0:00:37]} Bg7 {[%emt 0:00:06]} 39. Rhh3 {[%emt 0:00:59]} Kg8 {[%emt 0:00:47]} 40. Rh2 {[%emt 0:04:37]} b5 {[%emt 0:00:24]} 41. axb5 {[%emt 0:00:17]} Rxb5 {[%emt 0:00:05]} 42. Rc2 {[%emt 0:00:10]} a5 {[%emt 0:00:55]} 43. Rc8+ {[%emt 0:01:46]} Kf7 {[%emt 0:00:01]} 44. Rc7+ {[%emt 0:00:07]} Kg8 {[%emt 0:03:34]} 45. Rd7 {[%emt 0:00:26]} Rb4 {[%emt 0:00:17]} 46. Ra7 {[%emt 0:06:50]} Rb5 {[%emt 0:00:02]} 47. Rc7 {[%emt 0:01:30]} Rb4 {[%emt 0:01:11]} 48. Rc5 {[%emt 0:01:09]} a4 {[%emt 0:00:08]} 49. Rc4 {[%emt 0:00:04]} 1-0

[Event "Guimaraes Open 2019"]
[Site "Guimaraes"]
[Date "2019.08.29"]
[Round "3.33"]
[White "Rubio Barrio, Juan Antonio"]
[Black "Garcia Dorado, Alberto"]
[Result "1/2-1/2"]
[ECO "A21"]
[WhiteElo "1603"]
[BlackElo "2205"]
[Annotator "ChessBase"]
[PlyCount "112"]
[EventDate "2019.08.28"]
[EventType "swiss"]
[EventCountry "POR"]
[SourceTitle "playchess.com"]
[Source "ChessBase"]
[SourceQuality "1"]
[TimeControl "5400+30"]

1. c4 {[%emt 0:00:00]} e5 {[%emt 0:00:00]} 2. Nc3 {[%emt 0:00:00]} Bb4 {[%emt 0:00:00]} 3. Nd5 {[%emt 0:00:24]} Bc5 {[%emt 0:00:00]} 4. g3 {[%emt 0:02:39]} c6 {[%emt 0:00:28]} 5. Nc3 {[%emt 0:00:39]} Nf6 {[%emt 0:00:52]} 6. Bg2 {[%emt 0:00:52]} O-O {[%emt 0:00:38]} 7. Nf3 {[%emt 0:01:13]} e4 {[%emt 0:02:03]} 8. Ng1 {[%emt 0:13:19]} d5 {[%emt 0:00:58]} 9. cxd5 {[%emt 0:01:29]} cxd5 {[%emt 0:00:20]} 10. d4 {[%emt 0:01:10]} exd3 {[%emt 0:09:54]} 11. Qxd3 {[%emt 0:00:39]} Qb6 {[%emt 0:00:14]} 12. e3 {[%emt 0:01:32]} d4 {[%emt 0:03:28]} 13. Nd5 {[%emt 0:08:44]} Nxd5 {[%emt 0:00:39]} 14. Bxd5 {[%emt 0:00:28]} dxe3 {[%emt 0:00:29]} 15. Bxe3 {[%emt 0:02:08]} Bxe3 {[%emt 0:00:06]} 16. fxe3 {[%emt 0:03:07]} Re8 {[%emt 0:05:13]} 17. e4 {[%emt 0:02:58]} Qxb2 {[%emt 0:02:02]} 18. Rb1 {[%emt 0:00:46]} Qg2 {[%emt 0:01:08]} 19. Qf3 {[%emt 0:01:07]} Qxf3 {[%emt 0:00:19]} 20. Nxf3 {[%emt 0:00:17]} Nc6 {[%emt 0:00:16]} 21. O-O {[%emt 0:02:28]} Re7 {[%emt 0:00:47]} 22. Ng5 {[%emt 0:01:46]} Ne5 {[%emt 0:00:11]} 23. Rf2 {[%emt 0:03:10]} Bg4 {[%emt 0:06:02]} 24. h3 {[%emt 0:05:21]} Bh5 {[%emt 0:00:11]} 25. g4 {[%emt 0:00:30]} Bg6 {[%emt 0:00:04]} 26. Rxb7 {[%emt 0:01:04]} Rxb7 {[%emt 0:01:05]} 27. Bxb7 {[%emt 0:00:20]} Rb8 {[%emt 0:00:46]} 28. Bd5 {[%emt 0:00:42]} Rb1+ {[%emt 0:00:37]} 29. Kh2 {[%emt 0:02:20]} h6 {[%emt 0:04:00]} 30. Nf3 {[%emt 0:01:07]} Nxf3+ {[%emt 0:12:49]} 31. Rxf3 {[%emt 0:00:29]} Rc1 {[%emt 0:00:15]} 32. Kg3 {[%emt 0:04:36]} Kf8 {[%emt 0:00:30]} 33. Rb3 {[%emt 0:01:22]} Rc7 {[%emt 0:00:12]} 34. Rb8+ {[%emt 0:00:29]} Ke7 {[%emt 0:00:11]} 35. Rb7 {[%emt 0:00:26]} Rxb7 {[%emt 0:00:14]} 36. Bxb7 {[%emt 0:00:02]} f6 {[%emt 0:00:33]} 37. Kf4 {[%emt 0:01:19]} Bf7 {[%emt 0:01:33]} 38. Bd5 {[%emt 0:02:34]} Be6 {[%emt 0:01:47]} 39. Bxe6 {[%emt 0:01:44]} Kxe6 {[%emt 0:00:10]} 40. h4 {[%emt 0:00:55]} g5+ {[%emt 0:00:16]} 41. hxg5 {[%emt 0:00:39]} hxg5+ {[%emt 0:00:01]} 42. Kf3 {[%emt 0:00:31]} Kd6 {[%emt 0:00:10]} 43. Ke2 {[%emt 0:01:49]} Ke6 {[%emt 0:05:19]} 44. Kd3 {[%emt 0:00:48]} Kd7 {[%emt 0:01:25]} 45. Ke3 {[%emt 0:04:38]} Kc6 {[%emt 0:00:59]} 46. Kd3 {[%emt 0:01:15]} Kc5 {[%emt 0:13:40]} 47. Kc3 {[%emt 0:00:33]} Kd6 {[%emt 0:01:36]} 48. Kd4 {[%emt 0:00:34]} Ke6 {[%emt 0:00:11]} 49. Kd3 {[%emt 0:00:24]} a6 {[%emt 0:01:47]} 50. a3 {[%emt 0:01:57]} Kd7 {[%emt 0:01:26]} 51. Kd4 {[%emt 0:01:29]} Kd6 {[%emt 0:00:18]} 52. Kd3 {[%emt 0:00:18]} Ke5 {[%emt 0:05:08]} 53. Ke3 {[%emt 0:00:17]} Ke6 {[%emt 0:00:07]} 54. Kd4 {[%emt 0:00:23]} Kd6 {[%emt 0:00:09]} 55. Kd3 {[%emt 0:00:29]} Ke5 {[%emt 0:00:02]} 56. Ke3 {[%emt 0:00:10]} Ke6 1/2-1/2

[Event "Guimaraes Open 2019"]
[Site "Guimaraes"]
[Date "2019.08.29"]
[Round "3.34"]
[White "Lopez Quevedo, Eduardo"]
[Black "Palhas, Miguel Branco"]
[Result "1-0"]
[ECO "B01"]
[WhiteElo "2188"]
[BlackElo "1460"]
[Annotator "ChessBase"]
[PlyCount "63"]
[EventDate "2019.08.28"]
[EventType "swiss"]
[EventCountry "POR"]
[SourceTitle "playchess.com"]
[Source "ChessBase"]
[SourceQuality "1"]
[TimeControl "5400+30"]

1. e4 {[%emt 0:00:00]} d5 {[%emt 0:00:00]} 2. exd5 {[%emt 0:00:00]} Qxd5 {[%emt 0:00:05]} 3. Nc3 {[%emt 0:00:03]} Qd8 {[%emt 0:00:06]} 4. d4 {[%emt 0:00:49]} Nf6 {[%emt 0:02:06]} 5. Nf3 {[%emt 0:01:06]} e6 {[%emt 0:02:13]} 6. Bd3 {[%emt 0:01:10]} Be7 {[%emt 0:04:31]} 7. Qe2 {[%emt 0:03:35]} Nc6 {[%emt 0:07:06]} 8. Be3 {[%emt 0:08:39]} Nb4 {[%emt 0:05:21]} 9. Bc4 {[%emt 0:00:14]} c6 {[%emt 0:04:54]} 10. O-O {[%emt 0:01:51]} O-O {[%emt 0:03:03]} 11. Ne5 {[%emt 0:04:46]} Nbd5 {[%emt 0:01:46]} 12. Bd2 {[%emt 0:03:46]} Qb6 {[%emt 0:05:20]} 13. Nxd5 {[%emt 0:06:54]} exd5 {[%emt 0:01:04]} 14. Bd3 {[%emt 0:01:16]} Qxd4 {[%emt 0:01:59]} 15. Nxc6 {[%emt 0:01:36]} bxc6 {[%emt 0:01:03]} 16. Qxe7 {[%emt 0:00:08]} Re8 {[%emt 0:02:35]} 17. Qc7 {[%emt 0:02:57]} Qb6 {[%emt 0:04:04]} 18. Qg3 {[%emt 0:01:17]} Ne4 {[%emt 0:04:37]} 19. Bxe4 {[%emt 0:15:19]} Rxe4 {[%emt 0:00:36]} 20. Rae1 {[%emt 0:16:31]} Bf5 {[%emt 0:10:15]} 21. Rxe4 {[%emt 0:00:28]} Bxe4 {[%emt 0:00:14]} 22. Qe5 {[%emt 0:00:33]} Bxc2 {[%emt 0:06:52]} 23. Bc3 {[%emt 0:02:43]} f6 {[%emt 0:00:35]} 24. Qe6+ {[%emt 0:00:21]} Kf8 {[%emt 0:02:49]} 25. Rc1 {[%emt 0:05:06]} Be4 {[%emt 0:02:14]} 26. Qd6+ {[%emt 0:02:01]} Kf7 {[%emt 0:01:06]} 27. Bb4 {[%emt 0:02:15]} d4 {[%emt 0:02:42]} 28. Qe7+ {[%emt 0:03:52]} Kg8 {[%emt 0:00:14]} 29. Qxe4 {[%emt 0:01:29]} Qxb4 {[%emt 0:00:12]} 30. Qxc6 {[%emt 0:00:21]} Rb8 {[%emt 0:04:27]} 31. Qe6+ {[%emt 0:00:24]} Kf8 {[%emt 0:00:28]} 32. Rc7 {[%emt 0:00:31]} 1-0

[Event "Guimaraes Open 2019"]
[Site "Guimaraes"]
[Date "2019.08.29"]
[Round "3.35"]
[White "Silva, Tiago Alexandre Pinh"]
[Black "Dieguez Novoa, Laura"]
[Result "1-0"]
[ECO "C47"]
[WhiteElo "1833"]
[BlackElo "1083"]
[Annotator "NA"]
[PlyCount "51"]
[EventDate "2019.08.28"]
[EventType "swiss"]
[EventCountry "POR"]
[SourceTitle "playchess.com"]
[Source "ChessBase"]
[SourceQuality "1"]
[TimeControl "5400+30"]

1. e4 {[%emt 0:00:00]} e5 2. Nf3 {[%emt 0:00:00]} Nc6 {[%emt 0:00:00]} 3. Nc3 {[%emt 0:00:00]} Nf6 {[%emt 0:01:25]} 4. a3 {[%emt 0:00:00]} Bc5 {[%emt 0:01:42]} 5. Nxe5 {[%emt 0:00:00]} O-O {[%emt 0:00:59]} 6. Nxc6 {[%emt 0:00:40]} dxc6 {[%emt 0:00:34]} 7. Be2 {[%emt 0:00:32]} Re8 {[%emt 0:01:10]} 8. d3 {[%emt 0:00:10]} h6 {[%emt 0:00:47]} 9. O-O {[%emt 0:00:28]} Be6 {[%emt 0:01:40]} 10. Kh1 {[%emt 0:01:00]} Qd7 {[%emt 0:02:03]} 11. Na4 {[%emt 0:00:27]} Bd4 {[%emt 0:01:08]} 12. c3 {[%emt 0:00:17]} Bb6 {[%emt 0:01:12]} 13. Nxb6 {[%emt 0:00:06]} cxb6 {[%emt 0:00:46]} 14. f3 {[%emt 0:00:26]} Qd8 {[%emt 0:01:21]} 15. Qc2 {[%emt 0:00:20]} Nh5 {[%emt 0:00:56]} 16. f4 {[%emt 0:02:20]} Qh4 {[%emt 0:03:33]} 17. Bxh5 {[%emt 0:01:11]} Qxh5 {[%emt 0:01:23]} 18. f5 {[%emt 0:00:21]} Bd7 {[%emt 0:00:55]} 19. Qd1 {[%emt 0:00:23]} Qh4 {[%emt 0:01:13]} 20. Rf4 {[%emt 0:00:46]} Qg5 {[%emt 0:05:09]} 21. Rg4 {[%emt 0:00:17]} Qh5 {[%emt 0:01:28]} 22. Rxg7+ {[%emt 0:00:31]} Kxg7 {[%emt 0:01:46]} 23. Qxh5 {[%emt 0:00:02]} Rad8 {[%emt 0:02:03]} 24. Qxh6+ {[%emt 0:00:12]} Kg8 {[%emt 0:02:06]} 25. f6 {[%emt 0:00:05]} Re5 {[%emt 0:01:07]} 26. Qg7# {[%emt 0:00:09]} 1-0

[Event "Guimaraes Open 2019"]
[Site "Guimaraes"]
[Date "2019.08.30"]
[Round "4.5"]
[White "Tilicheev, Viacheslav"]
[Black "Dias, Ivo Rodrigues"]
[Result "1-0"]
[ECO "C07"]
[WhiteElo "2482"]
[BlackElo "2100"]
[Annotator "RC"]
[PlyCount "65"]
[EventDate "2019.08.28"]
[EventType "swiss"]
[EventCountry "POR"]
[SourceTitle "playchess.com"]
[Source "ChessBase"]
[SourceQuality "1"]
[TimeControl "5400+30"]

1. d4 {[%emt 0:00:00]} e6 {[%emt 0:00:45]} 2. e4 {[%emt 0:00:07]} d5 {[%emt 0:00:08]} 3. Nd2 {[%emt 0:00:04]} c5 {[%emt 0:00:52]} 4. Ngf3 {[%emt 0:00:10]} Nc6 {[%emt 0:00:39]} 5. c3 {[%emt 0:00:07]} cxd4 {[%emt 0:01:27]} 6. cxd4 {[%emt 0:00:10]} dxe4 {[%emt 0:00:22]} 7. Nxe4 {[%emt 0:00:06]} Bb4+ {[%emt 0:02:05]} 8. Bd2 {[%emt 0:00:06]} Bxd2+ {[%emt 0:01:19]} 9. Qxd2 {[%emt 0:00:12]} Nf6 {[%emt 0:06:03]} 10. Bd3 {[%emt 0:02:43]} O-O {[%emt 0:06:03]} 11. O-O {[%emt 0:00:09]} Bd7 {[%emt 0:09:16]} 12. Rfe1 {[%emt 0:06:07]} Rc8 {[%emt 0:02:43]} 13. Nxf6+ {[%emt 0:08:47]} Qxf6 {[%emt 0:01:53]} 14. Re4 {[%emt 0:00:08]} g6 {[%emt 0:04:16]} 15. h4 {[%emt 0:00:25]} Rfd8 {[%emt 0:03:09]} 16. Rae1 {[%emt 0:28:37]} Be8 {[%emt 0:01:36]} 17. Bc2 {[%emt 0:00:59]} Rd6 {[%emt 0:08:30]} 18. Bb3 {[%emt 0:09:37]} Rcd8 {[%emt 0:01:07]} 19. d5 {[%emt 0:00:19]} Ne7 {[%emt 0:01:52]} 20. Rf4 {[%emt 0:05:44]} Qg7 {[%emt 0:02:47]} 21. Qb4 {[%emt 0:16:04]} Nxd5 {[%emt 0:04:55]} 22. Bxd5 {[%emt 0:00:05]} Rxd5 {[%emt 0:00:40]} 23. Qxb7 {[%emt 0:00:06]} a5 {[%emt 0:00:37]} 24. Ng5 {[%emt 0:02:07]} Rd2 {[%emt 0:09:34]} 25. Ne4 {[%emt 0:01:39]} Rxb2 {[%emt 0:04:24]} 26. Qc7 {[%emt 0:02:38]} Rbb8 {[%emt 0:01:51]} 27. Nf6+ {[%emt 0:00:05]} Kh8 {[%emt 0:00:14]} 28. Nxe8 {[%emt 0:00:04]} Rxe8 {[%emt 0:01:37]} 29. Rxf7 {[%emt 0:00:05]} Qh6 {[%emt 0:01:38]} 30. Qe5+ {[%emt 0:00:26]} Kg8 {[%emt 0:00:10]} 31. Ra7 {[%emt 0:00:16]} Rb4 {[%emt 0:01:58]} 32. g3 {[%emt 0:00:18]} Qf8 {[%emt 0:00:42]} 33. Qc7 {[%emt 0:00:35]} 1-0

[Event "Guimaraes Open 2019"]
[Site "Guimaraes"]
[Date "2019.08.30"]
[Round "4.11"]
[White "Marques, Ricardo Taborda Trig"]
[Black "Nieves Cabanes, Javier"]
[Result "1-0"]
[ECO "C01"]
[WhiteElo "1958"]
[BlackElo "2211"]
[Annotator "RC"]
[PlyCount "105"]
[EventDate "2019.08.28"]
[EventType "swiss"]
[EventCountry "POR"]
[SourceTitle "playchess.com"]
[Source "ChessBase"]
[SourceQuality "1"]
[TimeControl "5400+30"]

1. e4 {[%emt 0:06:15]} e6 {[%emt 0:00:00]} 2. d4 {[%emt 0:00:06]} d5 {[%emt 0:00:00]} 3. exd5 {[%emt 0:00:14]} exd5 {[%emt 0:00:00]} 4. Nf3 {[%emt 0:00:04]} Bg4 {[%emt 0:01:16]} 5. h3 {[%emt 0:00:15]} Bh5 {[%emt 0:00:21]} 6. Qe2+ {[%emt 0:00:40]} Ne7 {[%emt 0:03:43]} 7. Nc3 {[%emt 0:06:12]} Nbc6 {[%emt 0:02:49]} 8. Be3 {[%emt 0:00:44]} Qd7 {[%emt 0:01:13]} 9. O-O-O {[%emt 0:00:55]} O-O-O {[%emt 0:01:42]} 10. g4 {[%emt 0:01:05]} Bg6 {[%emt 0:00:47]} 11. Nh4 {[%emt 0:01:01]} f6 {[%emt 0:05:50]} 12. Nxg6 {[%emt 0:00:49]} Nxg6 {[%emt 0:00:06]} 13. Bg2 {[%emt 0:02:47]} Qf7 {[%emt 0:01:14]} 14. h4 {[%emt 0:02:32]} Bb4 {[%emt 0:02:33]} 15. h5 {[%emt 0:01:54]} Nge7 {[%emt 0:00:05]} 16. Qd3 {[%emt 0:04:31]} Kb8 {[%emt 0:00:12]} 17. f4 {[%emt 0:04:51]} Na5 {[%emt 0:05:33]} 18. a3 {[%emt 0:04:16]} Bd6 {[%emt 0:00:22]} 19. Nb5 {[%emt 0:01:58]} Nc4 {[%emt 0:05:25]} 20. f5 {[%emt 0:12:38]} Nc8 {[%emt 0:08:35]} 21. Nxd6 {[%emt 0:03:51]} N8xd6 {[%emt 0:01:20]} 22. Bf4 {[%emt 0:00:54]} Rhe8 {[%emt 0:02:31]} 23. Rhe1 {[%emt 0:00:33]} h6 {[%emt 0:01:06]} 24. Kb1 {[%emt 0:02:21]} Ka8 {[%emt 0:01:02]} 25. Bc1 {[%emt 0:02:36]} c6 {[%emt 0:11:43]} 26. b3 {[%emt 0:01:16]} b5 {[%emt 0:00:26]} 27. bxc4 {[%emt 0:01:22]} Rxe1 {[%emt 0:06:39]} 28. Rxe1 {[%emt 0:00:12]} bxc4 {[%emt 0:00:10]} 29. Qc3 {[%emt 0:05:24]} Rb8+ {[%emt 0:02:47]} 30. Ka2 {[%emt 0:02:53]} Nb5 {[%emt 0:06:48]} 31. Qa5 {[%emt 0:05:32]} Qc7 {[%emt 0:02:18]} 32. Bd2 {[%emt 0:02:26]} Qg3 {[%emt 0:03:47]} 33. Bf1 {[%emt 0:04:56]} Qd6 {[%emt 0:06:08]} 34. Rb1 {[%emt 0:05:00]} Rb6 {[%emt 0:01:15]} 35. Qb4 {[%emt 0:02:27]} Qh2 {[%emt 0:03:38]} 36. a4 {[%emt 0:06:20]} Qb8 {[%emt 0:00:38]} 37. Qc5 {[%emt 0:02:14]} Qh2 {[%emt 0:03:24]} 38. Rxb5 {[%emt 0:00:27]} cxb5 {[%emt 0:05:01]} 39. Qxd5+ {[%emt 0:00:13]} Kb8 {[%emt 0:00:14]} 40. Bg2 {[%emt 0:00:40]} Kc8 {[%emt 0:01:41]} 41. Ba5 {[%emt 0:01:58]} b4 {[%emt 0:01:58]} 42. Qg8+ {[%emt 0:00:26]} Kc7 {[%emt 0:00:22]} 43. Qxg7+ {[%emt 0:00:15]} Kc8 {[%emt 0:00:36]} 44. Bxb6 {[%emt 0:00:28]} b3+ {[%emt 0:00:13]} 45. Ka3 {[%emt 0:00:55]} axb6 {[%emt 0:00:07]} 46. Qb7+ {[%emt 0:00:20]} Kd8 {[%emt 0:00:07]} 47. Qxb6+ {[%emt 0:00:05]} Kd7 {[%emt 0:00:26]} 48. Bc6+ {[%emt 0:00:15]} Ke7 {[%emt 0:00:09]} 49. Qc5+ {[%emt 0:00:46]} Kd8 {[%emt 0:00:16]} 50. Qd5+ {[%emt 0:00:25]} Ke7 {[%emt 0:00:41]} 51. Qe6+ {[%emt 0:00:09]} Kf8 {[%emt 0:00:10]} 52. Qxf6+ {[%emt 0:00:08]} Kg8 {[%emt 0:00:09]} 53. Bd5+ {[%emt 0:00:08]} 1-0